[Event "1st Doppelbauer Kiel IM 2022"]
[Site "Kiel"]
[Date "2022.06.30"]
[Round "3.1"]
[White "Zavgorodniy, Sergiy"]
[Black "Beeck, Mats"]
[Result "1-0"]
[ECO "B51"]
[WhiteElo "2423"]
[BlackElo "2169"]
[Annotator "TA"]
[PlyCount "91"]
[EventDate "2022.06.30"]
[EventType "tourn"]
[EventCountry "GER"]
[SourceTitle "playchess.com"]
[Source "ChessBase"]
[SourceQuality "1"]
[TimeControl "40/5400+30:1800+30"]

{[%evp 14,91,14,1,0,0,45,0,0,-25,-15,-9,0,-30,-26,-27,-35,-31,-25,-69,-59,-89,-97,-99,-100,-86,-102,-102,-97,-96,-93,-114,-106,-143,-122,-99,-95,-87,-93,-117,-47,-102,0,0,0,0,9,0,0,0,0,0,181,181,181,181,181,181,181,181,240,247,233,197,270,101,237,241,237,223,280,243,616,594,895,895,6103,5950,5152,5135]} 1. e4 {[%emt 0:00:02]} c5 {[%emt 0:00:41]} 2. Nf3 {[%emt 0:00:09]} d6 {[%emt 0:00:04]} 3. Bb5+ {[%emt 0:00:48]} Nd7 {[%emt 0:00:31]} 4. O-O {[%emt 0:00:09]} a6 {[%emt 0:00:04]} 5. Bxd7+ {[%emt 0:07:43]} Bxd7 {[%emt 0:00:36]} 6. d4 {[%emt 0:00:17]} cxd4 {[%emt 0:00:07]} 7. Qxd4 {[%emt 0:00:09]} Nf6 {[%emt 0:08:10]} 8. Bg5 {[%emt 0:04:42]} e6 {[%emt 0:14:31][%cal Be7e6,Be6e5][%mdl 32] 8...e6 is better than 8...h6. B51: Sicilian: Moscow Variation (3 Bb5+) without 3...Bd7.} 9. Nc3 {[%emt 0:05:49]} h6 {[%emt 0:05:13]} 10. Bh4 {[%emt 0:09:46]} (10. Bxf6 $5 gxf6 11. Nd2 $14) 10... e5 {[%emt 0:09:01] The position is equal.} 11. Qd3 {[%emt 0:01:42]} g5 {[%emt 0:02:47]} 12. Bg3 {[%emt 0:01:29] [#]} Qc7 $146 {[%emt 0:07:30]} ({Predecessor:} 12... Be7 13. Nd2 b5 14. Rfd1 Rc8 15. Nf1 h5 16. f3 b4 17. Nd5 Nxd5 18. Qxd5 Rxc2 {0-1 (37) Svane,F (2398)-Thybo,J (2576) Aarhus 2019}) 13. Rad1 {[%emt 0:08:09][%cal Of3d4]} Rc8 {[%emt 0:02:27]} 14. Rfe1 {[%emt 0:09:24][%cal Of3d4]} Be7 {[%emt 0:02:14]} 15. Nd2 {[%emt 0:01:24]} Be6 {[%emt 0:06:04]} 16. Nf1 {[%emt 0:01:08]} Qb6 {[%emt 0:08:40]} 17. Rb1 {[%emt 0:12:31]} h5 $1 {[%emt 0:00:55] Strongly threatening ...h4.} 18. h3 {[%emt 0:11:09]} h4 {[%emt 0:00:43]} 19. Bh2 {[%emt 0:00:01]} g4 {[%emt 0:07:12]} 20. hxg4 {[%emt 0:00:19]} Nxg4 {[%emt 0:00:07]} 21. Ne3 {[%emt 0:00:23]} Nxe3 {[%emt 0:00:50]} 22. Rxe3 {[%emt 0:03:20]} Bg5 {[%emt 0:04:35] aiming for ...Bc4.} 23. Rf3 {[%emt 0:00:29]} Bg4 {[%emt 0:01:42] This bishop pair is nice.} 24. Nd5 {[%emt 0:00:28]} Qd8 {[%emt 0:00:14]} 25. c3 {[%emt 0:00:51]} Rc5 {[%emt 0:04:31]} ({Much weaker is} 25... Bxf3 $6 26. Qxf3 h3 27. gxh3 $15) 26. Rd1 {[%emt 0:02:39][%cal Of3f5]} Rg8 {[%emt 0:03:53]} (26... Bxf3 $17 27. Qxf3 Rh6) 27. Kh1 {[%emt 0:04:30]} (27. Rf5 $1 $15) 27... Rg6 {[%emt 0:06:23]} (27... Qd7 $17 28. b4 Rc6) 28. Rf5 $1 $11 {[%emt 0:01:00]} Bxf5 {[%emt 0:03:44]} 29. exf5 {[%emt 0:00:04]} Rg8 {[%emt 0:00:39]} 30. b4 {[%emt 0:01:00]} Rc6 {[%emt 0:00:29]} 31. a4 {[%emt 0:05:00]} Kf8 {[%emt 0:00:22]} 32. a5 {[%emt 0:00:16]} Bh6 $2 {[%emt 0:00:59]} (32... Rh8 $11 {and Black stays safe.}) 33. f6 $18 {[%emt 0:01:08]} Bg5 {[%emt 0:00:27]} 34. Ne7 $1 {[%emt 0:02:33]} Bxf6 {[%emt 0:00:04]} 35. Nxc6 {[%emt 0:00:08]} bxc6 {[%emt 0:00:02]} 36. Qxd6+ {[%emt 0:00:53]} ({Don't play} 36. Qxa6 Qd7 $16) 36... Qxd6 {[%emt 0:01:27]} (36... Kg7 $142 37. Qxd8 (37. Bxe5 Qxd6 38. Bxd6 Re8 $14) 37... Rxd8 38. Rxd8 Bxd8) 37. Rxd6 {[%emt 0:00:02][%mdl 4096] Endgame KRB-KRB} Ke7 {[%emt 0:00:27]} 38. Rxc6 {[%emt 0:00:55]} Rd8 {[%emt 0:00:19]} (38... Ra8 {was worth a try.} 39. f3 Bg7) 39. g4 $2 {[%emt 0:00:31]} (39. Rxa6 $18 {is the precise move to win. Ra7+ is the strong threat.} Rd1+ 40. Bg1) 39... hxg3 {[%emt 0:00:36] Black cannot hold the game after this.} (39... Rd1+ $16 40. Kg2 Rd3) 40. Bxg3 {[%emt 0:00:11]} Rd6 {[%emt 0:00:30] [#]} 41. Rc5 {[%emt 0:35:56]} Ke6 {[%emt 0:01:44] [#]} 42. c4 $1 {[%emt 0:00:00] Prevents Rd5.} Bg7 $2 {[%emt 0:00:37]} (42... Kd7 43. b5 axb5) 43. b5 {[%emt 0:00:00][%cal Bb4b5,Bb5b6][%mdl 32] White is clearly winning.} f5 {[%emt 0:00:04]} 44. b6 {[%emt 0:00:00] Hoping for b7.} Rd7 {[%emt 0:00:22]} 45. Rc6+ {[%emt 0:00:00]} Ke7 {[%emt 0:00:32]} 46. Bh4+ {[%emt 0:00:00] Weighted Error Value: White=0.15 (very precise) /Black=0.38} 1-0

[Event "1st Doppelbauer Kiel IM 2022"]
[Site "Kiel"]
[Date "2022.06.30"]
[Round "3.2"]
[White "Junge, Ralph"]
[Black "Lanka, Zigurds"]
[Result "1/2-1/2"]
[ECO "A46"]
[WhiteElo "2224"]
[BlackElo "2397"]
[Annotator "TA"]
[PlyCount "40"]
[EventDate "2022.06.30"]
[EventType "tourn"]
[EventCountry "GER"]
[SourceTitle "playchess.com"]
[Source "ChessBase"]
[SourceQuality "1"]
[TimeControl "40/5400+30:1800+30"]

{[%evp 16,40,0,-14,-2,-31,-2,0,0,-6,0,3,0,-6,0,-6,-16,-21,-19,-4,0,-31,-15,-16,-9,-57,-50]} 1. d4 {[%emt 0:00:08]} Nf6 {[%emt 0:00:16]} 2. Bg5 {[%emt 0:00:07]} e6 {[%emt 0:00:13]} 3. e4 {[%emt 0:00:28]} h6 {[%emt 0:02:29]} 4. Bxf6 {[%emt 0:03:44]} Qxf6 {[%emt 0:00:18]} 5. Nf3 {[%emt 0:01:57]} d6 {[%emt 0:01:23]} 6. Nc3 {[%emt 0:03:46]} g5 {[%emt 0:01:04]} 7. h3 {[%emt 0:01:25]} Bg7 {[%emt 0:00:28]} 8. Qd2 {[%emt 0:07:15]} Nc6 {[%emt 0:01:33]} 9. O-O-O {[%emt 0:10:31][%cal Oe4e5]} Bd7 {[%emt 0:01:31] A46: 1 d4 Nf6 2 Nf3 e6: Torre, London and Colle Systems.} 10. Bb5 {[%emt 0:02:42][%cal Oe4e5]} O-O-O {[%emt 0:05:49]} (10... a6 $5 {[%cal Ra6b5]} 11. Bxc6 Bxc6 $11) 11. Kb1 {[%emt 0:01:15]} a6 {[%emt 0:02:34] The position is equal.} 12. Ba4 {[%emt 0:00:58] [#]} Ne7 $146 {[%emt 0:03:47]} ({Predecessor:} 12... Rhe8 13. Rhe1 Bh8 14. Qe3 Kb8 15. a3 Qg7 16. e5 f5 17. exf6 Qxf6 18. Ne4 Qf5 {1-0 (33) Stamenkovic,D (2370)-Zambrana,O (2513) Campinas 2011}) 13. Bxd7+ {[%emt 0:04:24]} Rxd7 {[%emt 0:00:14]} 14. Ne2 {[%emt 0:06:29]} Qg6 {[%emt 0:01:25]} 15. Ng3 {[%emt 0:00:53]} f5 {[%emt 0:00:49]} 16. exf5 {[%emt 0:00:30]} Nxf5 {[%emt 0:01:04]} 17. Nxf5 {[%emt 0:00:59]} Qxf5 {[%emt 0:00:22]} 18. Nh2 {[%emt 0:05:20]} Rf8 {[%emt 0:00:23]} 19. f3 {[%emt 0:00:22]} Qf4 {[%emt 0:01:16]} 20. Qf2 {[%emt 0:04:38]} (20. Ng4 $11) 20... Re7 {[%emt 0:00:43] Weighted Error Value: White=0.10 (very precise) /Black=0.08 (flawless)} 1/2-1/2

[Event "1st Doppelbauer Kiel IM 2022"]
[Site "Kiel"]
[Date "2022.06.30"]
[Round "3.3"]
[White "Ermitsch, Magnus"]
[Black "Fromm, Marius"]
[Result "0-1"]
[ECO "C90"]
[WhiteElo "2222"]
[BlackElo "2317"]
[Annotator "TA"]
[PlyCount "76"]
[EventDate "2022.06.30"]
[EventType "tourn"]
[EventCountry "GER"]
[SourceTitle "playchess.com"]
[Source "ChessBase"]
[SourceQuality "1"]
[TimeControl "40/5400+30:1800+30"]

{[%evp 23,76,14,18,7,30,4,4,10,6,0,0,0,0,-4,56,54,52,9,2,8,0,18,33,35,35,30,19,14,25,0,11,-533,-536,-535,-521,-545,-541,-624,-639,-1501,-1481,-1833,-1811,-2271,-2716,-5976,-5968,-5416,-5121,-29973,-29974,-29994,-29995,-29995,-29996]} 1. e4 {[%emt 0:00:14]} e5 {[%emt 0:00:03]} 2. Nf3 {[%emt 0:00:13]} Nc6 {[%emt 0:00:02]} 3. Bb5 {[%emt 0:00:22]} a6 {[%emt 0:00:07]} 4. Ba4 {[%emt 0:00:13]} Nf6 {[%emt 0:00:05]} 5. O-O {[%emt 0:00:17]} Be7 {[%emt 0:00:07]} 6. d3 {[%emt 0:00:23]} b5 {[%emt 0:00:11]} 7. Bb3 {[%emt 0:00:19]} d6 {[%emt 0:00:08]} 8. c3 {[%emt 0:00:35]} O-O {[%emt 0:00:16]} 9. a4 {[%emt 0:00:21]} Bd7 {[%emt 0:00:15]} 10. Bc2 {[%emt 0:00:19]} Re8 {[%emt 0:00:17]} 11. Re1 {[%emt 0:00:30]} h6 {[%emt 0:00:12]} 12. Nbd2 {[%emt 0:00:31]} Bf8 {[%emt 0:00:05]} 13. h3 {[%emt 0:00:45] C90: Closed Ruy Lopez with 7...d6: Early deviations.} Ne7 {[%emt 0:01:32] 13...Ne7 has become a bit dusty these days.} 14. Nf1 {[%emt 0:01:35] [#]} c5 $146 {[%emt 0:06:21]} ({Predecessor:} 14... Ng6 15. Ng3 c5 16. d4 cxd4 17. cxd4 Rc8 18. Be3 Qc7 19. Re2 Qb7 20. Rd2 Rc7 {½-½ (54) Drazic,S (2483)-Rogic,D (2510) Zupanja 2007}) 15. d4 {[%emt 0:01:00] The position is equal.} cxd4 {[%emt 0:13:00]} 16. cxd4 {[%emt 0:00:49]} exd4 {[%emt 1:15:49]} 17. Nxd4 {[%emt 0:02:54]} Ng6 {[%emt 0:00:00]} 18. Ng3 {[%emt 0:08:15]} Rc8 {[%emt 0:00:00]} (18... bxa4 $11 19. Re2 (19. Bxa4 d5 $11) 19... Bb5) 19. axb5 $14 {[%emt 0:02:37]} axb5 {[%emt 0:00:00]} 20. Bd3 {[%emt 0:00:53]} d5 {[%emt 0:00:00]} 21. exd5 {[%emt 0:03:27][%cal Od4e6]} Rxe1+ {[%emt 0:00:00]} 22. Qxe1 {[%emt 0:00:01]} Qb6 {[%emt 0:00:00] [#]} 23. Ne6 {[%emt 0:06:45]} Nxd5 {[%emt 0:00:00]} 24. Nxf8 {[%emt 0:01:14]} Rxf8 {[%emt 0:00:00]} 25. Qe4 {[%emt 0:13:31]} Bc6 {[%emt 0:00:00][%cal Od5f4]} 26. Qf5 {[%emt 0:02:51] Inhibits Ndf4.} (26. Bf1 $5 {[%cal Rg3f5]}) 26... Rd8 {[%emt 0:00:00][%cal Bf8d8,Bd8d3,Bd3e3][%mdl 32] aiming for ...Nde7.} 27. Bd2 $2 {[%emt 0:03:16][%mdl 8192] Loses the game.} (27. Bf1 $11 {and White is okay.}) 27... Nde7 $19 {[%emt 0:00:00] Pair of Knights!} 28. Be3 {[%emt 0:07:58]} Qb8 {[%emt 0:00:00]} ({Inferior is} 28... Nxf5 29. Bxb6 Rxd3 30. Nxf5 $11) 29. Qg4 {[%emt 0:03:43]} Rxd3 {[%emt 0:00:00]} 30. Nh5 {[%emt 0:00:04]} Qe5 {[%emt 0:00:00]} 31. Rc1 {[%emt 0:01:31]} Rxe3 {[%emt 0:00:00]} 32. Qd1 {[%emt 0:01:08] [#] Inhibits Re1+.} Qe4 $1 {[%emt 0:00:00][%csl Gc6][%cal Re4g2]} 33. Qf1 {[%emt 0:00:42] [#]} (33. f3 Qe5) 33... Rxh3 $3 {[%emt 0:00:00]} 34. Ng3 {[%emt 0:00:13] [#]} (34. Re1 Qg4) 34... Rxg3 $1 {[%emt 0:00:00]} 35. fxg3 {[%emt 0:00:05]} Qe3+ {[%emt 0:00:00]} 36. Kh2 {[%emt 0:00:23]} Ne5 {[%emt 0:00:00] Black mates.} 37. Re1 {[%emt 0:00:02]} Ng4+ {[%emt 0:00:00]} 38. Kh1 {[%emt 0:00:53] [#]} Qxg3 $1 {[%emt 0:00:00] Weighted Error Value: White=1.27/Black=0.07 (flawless)} 0-1

[Event "1st Doppelbauer Kiel IM 2022"]
[Site "Kiel"]
[Date "2022.06.30"]
[Round "3.4"]
[White "Fischer, Daniel"]
[Black "Arndt, Magnus"]
[Result "1-0"]
[ECO "C88"]
[WhiteElo "2367"]
[BlackElo "2343"]
[Annotator "TA"]
[PlyCount "94"]
[EventDate "2022.06.30"]
[EventType "tourn"]
[EventCountry "GER"]
[SourceTitle "playchess.com"]
[Source "ChessBase"]
[SourceQuality "1"]
[TimeControl "40/5400+30:1800+30"]

{[%evp 14,94,32,18,37,35,42,39,43,46,31,16,27,18,19,18,18,12,17,0,0,-6,0,-11,-8,-18,0,0,0,-42,0,-18,0,0,-3,0,0,-38,-8,-29,-36,-32,0,-6,0,-8,0,0,0,-16,0,-38,-23,-29,-12,-53,-33,-62,-58,-60,-61,-54,-62,-65,-29,-85,-64,-58,-45,-47,-42,-107,-42,-117,-40,-66,-56,-55,-41,-21,-25,-108,-43]} 1. e4 {[%emt 0:00:04]} e5 {[%emt 0:00:08]} 2. Nf3 {[%emt 0:00:04]} Nc6 {[%emt 0:00:05]} 3. Bb5 {[%emt 0:00:06]} a6 {[%emt 0:00:05]} 4. Ba4 {[%emt 0:00:04]} Nf6 {[%emt 0:00:05]} 5. O-O {[%emt 0:00:25]} Be7 {[%emt 0:00:05]} 6. Re1 {[%emt 0:00:30]} b5 {[%emt 1:33:02]} 7. Bb3 {[%emt 0:00:04]} O-O {[%emt 0:00:10]} 8. a4 {[%emt 0:00:24][%cal Ba2a4,Ba4b5][%mdl 32]} Na5 {[%emt 0:02:47] C88: Closed Ruy Lopez: Anti-Marshall Systems.} 9. axb5 {[%emt 0:08:07] is the legacy move (9.Ba2).} Nxb3 {[%emt 0:00:19]} 10. cxb3 {[%emt 0:00:04]} Bb7 {[%emt 0:00:12] White is slightly better.} 11. bxa6 {[%emt 0:22:41]} Bxe4 {[%emt 0:00:16]} 12. d3 {[%emt 0:05:03]} Bb7 {[%emt 0:00:12]} 13. Nxe5 {[%emt 0:59:24] [#]} (13. a7 {is more complex.} Bc5 14. Be3 Bb4 15. Nc3) 13... Rxa6 $146 {[%emt 0:00:56]} ({Predecessor:} 13... Bxa6 14. Nc3 Bb7 15. Bd2 Re8 16. Na4 d6 17. Nc4 Nd7 18. Na5 Bd5 19. Nc3 Be6 {½-½ (27) Manthey,F (2087)-Rausch,W (1977) Mittelfranken 2009}) 14. Rxa6 {[%emt 0:01:22]} Bxa6 {[%emt 0:00:09]} 15. Bd2 {[%emt 0:03:52]} Bb7 {[%emt 0:12:25]} 16. Bc3 {[%emt 0:03:47]} Re8 {[%emt 0:06:19]} 17. Nd2 {[%emt 0:04:19]} Nd5 {[%emt 0:12:55]} 18. Nec4 {[%emt 0:10:55]} Bf8 {[%emt 0:06:27] A strong pair of Bishops.} 19. Nf3 {[%emt 0:12:09]} d6 {[%emt 0:08:34]} 20. Rxe8 {[%emt 0:01:34]} Qxe8 {[%emt 0:00:27]} 21. Qe1 {[%emt 0:00:29]} Qc8 {[%emt 0:03:40][%mdl 1024] Black has compensation.} (21... Qa8 $5 {[%cal Rd5f4]}) 22. Ncd2 {[%emt 0:01:37]} Nf4 {[%emt 0:06:43]} 23. Qe3 $1 {[%emt 0:00:35]} Qg4 {[%emt 0:00:39][%csl Gf4][%cal Rg4g2] [#]} 24. g3 {[%emt 0:00:10]} Ne6 {[%emt 0:06:15]} 25. Kf1 {[%emt 0:01:58]} h6 {[%emt 0:33:01]} 26. h4 {[%emt 0:01:47]} c5 {[%emt 0:03:38]} 27. Ke1 {[%emt 0:02:04]} Qf5 {[%emt 0:03:44]} 28. Kd1 {[%emt 0:04:20]} Nc7 {[%emt 0:07:16]} (28... d5 {seems wilder.} 29. d4 Ba6 30. Qe5 Qd3) 29. Kc1 {[%emt 0:01:55]} Ne6 {[%emt 0:05:46]} 30. Kd1 {[%emt 0:01:34]} Nc7 {[%emt 0:00:54]} 31. Kc1 {[%emt 0:00:04]} Qc8 {[%emt 0:00:04]} 32. Kb1 {[%emt 0:01:08]} Nd5 {[%emt 0:00:54]} 33. Qe2 {[%emt 0:00:01]} Qf5 {[%emt 0:01:33]} 34. Ka2 {[%emt 0:00:49]} Ba6 {[%emt 0:01:33]} 35. Nc4 {[%emt 0:01:17]} Qd7 {[%emt 0:10:25]} 36. Kb1 {[%emt 0:01:50]} Qb5 {[%emt 0:00:27]} 37. Kc2 {[%emt 0:00:41]} Nc7 {[%emt 0:01:21]} 38. Na3 {[%emt 0:00:11]} Qc6 {[%emt 0:00:48]} 39. Qe3 {[%emt 0:00:42]} (39. Qe4 $11 {remains equal.} Qd7 40. Qe3) 39... Ne6 {[%emt 0:02:47]} 40. Kb1 {[%emt 0:01:36]} Qd5 {[%emt 0:03:19]} 41. Nc4 {[%emt 0:32:32]} Qb7 {[%emt 0:01:57]} 42. Ncd2 {[%emt 0:01:01] [#]} ({White should play} 42. Na5 $15 Qd7 43. Ne1) 42... Bb5 {[%emt 0:01:45]} (42... d5 $1 $17 {White must now prevent ...d4.} 43. d4 Qa7) 43. Kc2 {[%emt 0:02:57]} (43. d4 $15) 43... Qa6 {[%emt 0:02:04]} (43... d5 $17 {And now ...d4 would win.} 44. d4 Qa7) 44. Qe4 {[%emt 0:00:59]} Nc7 {[%emt 0:01:14]} 45. d4 {[%emt 0:04:23]} d5 {[%emt 0:08:47]} 46. Qe3 {[%emt 0:00:15]} Ne6 {[%emt 0:08:28]} 47. Nb1 {[%emt 0:04:55]} (47. dxc5 $11 Bxc5 48. Bd4) 47... Qc8 {[%emt 0:07:28][%mdl 32768] Weighted Error Value: White=0.16 (very precise) /Black=0.12 (very precise) . Loss on time!?} ({Better is} 47... Qb7 $17 48. Nbd2 Qc6) 1-0

[Event "1st Doppelbauer Kiel IM 2022"]
[Site "Kiel"]
[Date "2022.06.30"]
[Round "3.5"]
[White "Kopylov, Daniel"]
[Black "Barseghyan, Armen Ar."]
[Result "0-1"]
[ECO "B38"]
[WhiteElo "2292"]
[BlackElo "2378"]
[Annotator "TA"]
[PlyCount "112"]
[EventDate "2022.06.30"]
[EventType "tourn"]
[EventCountry "GER"]
[SourceTitle "playchess.com"]
[Source "ChessBase"]
[SourceQuality "1"]
[TimeControl "40/5400+30:1800+30"]

{[%evp 18,112,52,58,58,25,13,-52,-40,-31,5,0,0,0,6,7,9,9,0,-53,-52,-41,-41,-41,-51,-46,-45,-46,-44,-101,-104,-110,-104,-168,-172,-182,-184,-151,-167,-177,-179,-320,-287,-409,-409,-230,-233,-233,-233,-280,-225,-232,-210,-658,-681,-683,-648,-1158,-1101,-29951,-11854,-29957,-29955,-29955,-29956,-29956,-29954,-29951,-8947,-5587,-4710,-29965,-29963,-29967,-12670,-29981,-29982,-29982,-29983,-29982,-29983,-29981,-29982,-29982,-29983,-29986,-29987,-29987,-29988,-29988,-29989,-29989,-29990,-29990,-29991,-29991,-29992]} 1. e4 {[%emt 0:00:11]} c5 {[%emt 0:00:09]} 2. Nf3 {[%emt 0:00:14]} Nc6 {[%emt 0:00:15]} 3. d4 {[%emt 0:00:14]} cxd4 {[%emt 0:00:06]} 4. Nxd4 {[%emt 0:00:05]} g6 {[%emt 0:00:06]} 5. c4 {[%emt 0:00:36]} Nf6 {[%emt 0:00:17]} 6. Nc3 {[%emt 0:00:12]} d6 {[%emt 0:00:19]} 7. Be2 {[%emt 0:00:23]} Bg7 {[%emt 0:00:33]} 8. Be3 {[%emt 0:00:33]} O-O {[%emt 0:00:15]} 9. O-O {[%emt 0:00:16]} Bd7 {[%emt 0:00:41]} 10. Nc2 {[%emt 0:01:39]} Be6 {[%emt 0:00:46][%cal Bd7e6,Be6f7,Bf7c4][%mdl 32] B38: Sicilian: Maroczy Bind with 5...Bg7 and 7...0-0.} 11. f3 {[%emt 0:00:35]} Nd7 {[%emt 0:01:48]} 12. f4 {[%emt 0:01:59] [#]} (12. Qd2 $11) 12... Bxc3 $146 {[%emt 0:01:23] Black is slightly better.} ({Predecessor:} 12... f5 13. exf5 gxf5 14. Nd4 Nxd4 15. Bxd4 Bxd4+ 16. Qxd4 Qb6 17. Qxb6 Nxb6 18. b3 d5 19. Nb5 Rf6 {1-0 (61) Lutsko,I (2339)-Tsaruk,M (2053) Minsk 2016}) 13. bxc3 {[%emt 0:00:45]} f6 {[%emt 0:00:12]} 14. Nd4 {[%emt 0:07:15]} Bf7 {[%emt 0:00:12]} 15. Bg4 {[%emt 0:06:33]} Nc5 {[%emt 0:05:43] Against Ne6} 16. Nxc6 {[%emt 0:02:02]} bxc6 {[%emt 0:00:06]} 17. Bxc5 {[%emt 0:00:33]} dxc5 {[%emt 0:00:04]} 18. Qd7 {[%emt 0:01:34]} (18. Qe2 $11) 18... Qxd7 {[%emt 0:04:49]} ({Don't play} 18... Bxc4 19. Be6+ Bxe6 20. Qxe6+ Rf7 21. Qxc6 $11) 19. Bxd7 {[%emt 0:01:12]} Bxc4 {[%emt 0:00:06]} 20. Rfd1 {[%emt 0:08:32]} Rab8 {[%emt 0:00:18]} 21. Bxc6 {[%emt 0:00:30]} Rfd8 {[%emt 0:00:23]} 22. Rxd8+ {[%emt 0:02:56]} Rxd8 {[%emt 0:00:09]} 23. Bd5+ {[%emt 0:01:35] Black keeps a firm grip on the game.} ({White should try} 23. Rb1 $15) 23... Bxd5 $17 {[%emt 0:01:25][%mdl 4096] Endgame KRB-KR} 24. Rd1 {[%emt 0:00:56][%mdl 64] Pin} e6 {[%emt 0:00:04][%cal Og8f7]} 25. c4 {[%emt 0:00:49] [#]} (25. exd5 $17 exd5 26. Kf2) 25... Kf7 $1 $19 {[%emt 0:00:20][%cal Of7e7]} 26. exd5 {[%emt 0:18:59]} (26. cxd5 exd5) 26... exd5 {[%emt 0:02:45]} 27. cxd5 {[%emt 0:00:34] KR-KR} Ke7 {[%emt 0:00:06]} 28. Re1+ {[%emt 0:05:34]} Kd6 {[%emt 0:00:06]} 29. Re6+ {[%emt 0:00:50]} (29. Kf2 $142) 29... Kxd5 {[%emt 0:00:06]} 30. Rxf6 {[%emt 0:00:03]} (30. Ra6 {was worth a try.}) 30... c4 {[%emt 0:01:40] [#] Hoping for ...c3.} 31. Kf2 {[%emt 0:03:56]} (31. Kf1 $142 c3 32. Ke2) 31... Kd4 {[%emt 0:11:58] ...Kd3 is the strong threat.} 32. Ke2 {[%emt 0:13:17]} Kc3 {[%emt 0:00:09] And now ...Kb2 would win.} 33. Rf7 {[%emt 0:00:34]} Rd2+ {[%emt 0:01:34]} 34. Kf3 {[%emt 0:01:15]} h5 {[%emt 0:06:48][%cal Bh7h5,Bh5h4][%mdl 32]} ({And not} 34... Rxa2 35. g4 $17) 35. f5 $2 {[%emt 0:16:08]} (35. Rxa7 Kb2 36. Rb7+ Kxa2 37. Rc7) 35... gxf5 {[%emt 0:01:09]} 36. Rxf5 {[%emt 0:00:08]} h4 {[%emt 0:01:44]} 37. Ra5 {[%emt 0:02:52]} Rd7 {[%emt 0:01:18]} 38. Rh5 {[%emt 0:02:13]} Kd3 {[%emt 0:09:08]} 39. Rxh4 {[%emt 0:00:42]} Rf7+ {[%emt 0:00:08]} 40. Kg3 {[%emt 0:00:37]} c3 {[%emt 0:00:47]} 41. Rh8 {[%emt 0:05:07]} Rc7 {[%emt 0:01:20]} 42. Rd8+ {[%emt 0:01:43]} Ke2 {[%emt 0:00:04]} 43. Re8+ {[%emt 0:00:23]} Kd2 {[%emt 0:00:04] ( -> ...c2)} 44. Rd8+ {[%emt 0:00:29]} Kc1 {[%emt 0:00:32]} 45. Rf8 {[%emt 0:02:50]} c2 {[%emt 0:00:13]} (45... Kb2 $142 46. a4 a5 47. h4 c2 48. Rf1 c1=Q 49. Rxc1 Rxc1 50. h5 Kb3 51. Kf4 Kxa4 52. Kf3 Kb3 53. h6 a4 54. Kg4 a3 55. h7 Rc8 56. Kf5 a2 57. Kg6 a1=Q 58. h8=B Rxh8 59. Kf5 Rf8+ 60. Ke6 Qf6+ 61. Kd5 Re8 62. Kc5 Re5+ 63. Kd4 Qd6#) 46. h4 {[%emt 0:02:03]} Kb1 {[%emt 0:03:28] Black mates.} 47. Rf1+ {[%emt 0:00:41]} Kxa2 {[%emt 0:00:22]} 48. h5 {[%emt 0:01:11]} Kb2 {[%emt 0:01:22]} 49. Kh4 {[%emt 0:01:25]} c1=Q {[%emt 0:00:17]} 50. Rxc1 {[%emt 0:00:11]} Rxc1 {[%emt 0:00:20] KR-KPP} 51. g4 {[%emt 0:01:02]} a5 {[%emt 0:01:10][%cal Ba7a5,Ba5a4,Ba4a3,Ba3a2][%mdl 32]} 52. g5 {[%emt 0:00:28]} Rh1+ {[%emt 0:00:03]} 53. Kg4 {[%emt 0:00:17]} a4 {[%emt 0:00:03]} 54. g6 {[%emt 0:00:24]} a3 {[%emt 0:00:05]} 55. Kf5 {[%emt 0:00:42]} a2 {[%emt 0:00:12]} 56. g7 {[%emt 0:00:08]} Rg1 {[%emt 0:00:06] Weighted Error Value: White=0.80/Black=0.11 (very precise)} 0-1

[Event "1st Doppelbauer Kiel IM 2022"]
[Site "Kiel"]
[Date "2022.07.01"]
[Round "4.1"]
[White "Beeck, Mats"]
[Black "Barseghyan, Armen Ar."]
[Result "1/2-1/2"]
[ECO "B38"]
[WhiteElo "2169"]
[BlackElo "2378"]
[Annotator "TA"]
[PlyCount "48"]
[EventDate "2022.06.30"]
[EventType "tourn"]
[EventCountry "GER"]
[SourceTitle "playchess.com"]
[Source "ChessBase"]
[SourceQuality "1"]
[TimeControl "40/5400+30:1800+30"]

{[%evp 20,48,56,53,60,63,110,58,66,61,137,129,118,138,147,124,127,127,128,128,128,124,129,128,125,125,121,104,102,104,136]} 1. e4 {[%emt 0:00:05]} c5 {[%emt 0:00:15]} 2. Nf3 {[%emt 0:00:08]} Nc6 {[%emt 0:00:13]} 3. d4 {[%emt 0:00:27]} cxd4 {[%emt 0:00:10]} 4. Nxd4 {[%emt 0:00:05]} g6 {[%emt 0:00:13]} 5. c4 {[%emt 0:00:16]} Nf6 {[%emt 0:00:11]} 6. Nc3 {[%emt 0:00:07]} d6 {[%emt 0:00:10]} 7. f3 {[%emt 0:00:43]} Bg7 {[%emt 0:00:34]} 8. Be3 {[%emt 0:00:32]} O-O {[%emt 0:00:22]} 9. Be2 {[%emt 0:00:25]} Bd7 {[%emt 0:00:18]} 10. Qd2 {[%emt 0:00:27]} Nxd4 {[%emt 0:00:46]} 11. Bxd4 {[%emt 0:00:26]} a5 {[%emt 0:00:11] B38: Sicilian: Maroczy Bind with 5...Bg7 and 7...0-0.} 12. h4 {[%emt 0:00:10] [#]} Rc8 $146 {[%emt 0:05:20] [#]} (12... h5 $14 {feels stronger.}) ({Predecessor:} 12... h6 13. O-O-O a4 14. a3 Rc8 15. Kb1 Re8 16. g4 Qa5 17. g5 Nh5 18. Bxg7 Kxg7 19. Rhg1 hxg5 20. Rxg5 {1-0 (56) Suarez Uriel,A (2359)-Maze,S (2527) Chess.com INT 2022}) 13. h5 {[%emt 0:05:00]} (13. g4 $1 $16) 13... e5 $14 {[%emt 0:17:33] White is slightly better.} (13... Nxh5 $2 14. Bxg7 Nxg7 15. Qh6 $18) 14. h6 {[%emt 0:03:22]} Bh8 {[%emt 0:02:16]} ({Better is} 14... Bxh6 $1 $14 15. Qxh6 (15. Rxh6 exd4 16. Qxd4 Nh5 $11) 15... exd4) 15. Bf2 $16 {[%emt 0:08:18]} Be6 {[%emt 0:02:26]} 16. b3 {[%emt 0:02:52]} Ne8 {[%emt 0:03:44]} 17. g4 {[%emt 0:05:43]} Bf6 {[%emt 0:01:26] White is better.} 18. Be3 {[%emt 0:02:16] Inhibits Bg5.} Bh4+ {[%emt 0:04:53]} 19. Kd1 {[%emt 0:08:54][%cal Be1d1,Bd1c2,Bc2b2][%mdl 32]} Be7 {[%emt 0:00:08]} 20. Kc2 {[%emt 0:02:29]} Nf6 {[%emt 0:03:38][%cal Be8f6,Bf6d7,Bd7c5][%mdl 32]} 21. Kb2 {[%emt 0:01:19]} Nd7 {[%emt 0:02:16]} 22. Rac1 {[%emt 0:08:47] 0x0.000bd00f35f3dp-1022s more active pieces.} Nc5 {[%emt 0:08:26]} 23. Nd5 {[%emt 0:05:42]} Bxd5 {[%emt 0:08:30]} 24. cxd5 {[%emt 0:01:22]} ({Resist} 24. exd5 f5 $14) ({Much weaker is} 24. Qxd5 $6 Bg5 25. Bxg5 Qxg5 $15) 24... Qb6 {[%emt 0:00:08] Weighted Error Value: White=0.08 (flawless) /Black=0.12 (very precise)} 1/2-1/2